bitfinex/quotes_SOLUSD_20241125
["timestamp","ask_amount","ask_price","bid_price","bid_amount"]
[1732542274304,23.776884,249.07,249.01,10.0]
[1732542274608,8.4316,249.06,249.01,10.0]
[1732542275401,20.0,249.03,249.01,10.0]
[1732542276702,2.4094,249.02,249.01,10.0]
[1732542278098,2.4094,249.02,248.99,10.0]
[1732542278304,23.776884,249.01,248.96,10.0]
[1732542278810,23.776884,248.99,248.96,10.0]
[1732542279581,2.4096,249.0,248.98,10.0]
[1732542279798,20.0,248.99,248.98,10.0]
[1732542280106,20.0,248.99,248.9,15.2307]
[1732542280107,23.776884,248.98,248.96,10.0]
[1732542280676,2.4099,248.97,248.96,10.0]
[1732542281197,20.0,248.94,248.92,10.0]
[1732542281703,23.776884,248.94,248.9,10.0]
[1732542282080,23.776884,248.94,248.84,16.5213]
[1732542282081,2.4103,248.93,248.92,10.0]
[1732542284399,6.0248,248.97,248.84,28.09451723]
[1732542284400,6.0248,248.97,248.95,10.0]
[1732542285985,6.0248,248.97,248.93,10.0]
[1732542286186,6.0248,248.97,248.95,10.0]
[1732542286686,6.0248,248.97,248.93,10.0]
[1732542287206,2.4097,248.99,248.98,10.0]
[1732542288489,22.4097,248.99,248.98,10.0]
[1732542288990,20.0,248.95,248.94,10.0]
[1732542289192,2.4101,248.95,248.94,10.0]
[1732542291198,20.0,249.0,248.97,10.0]
[1732542292205,20.0,248.92,248.9,10.0]
[1732542293514,2.4105,248.91,248.9,10.0]
[1732542293886,46.187384,248.91,248.87,10.0]
[1732542294092,20.0,248.87,248.85,10.0]
[1732542295421,23.776884,248.9,248.78,15.152]
[1732542295422,20.0,248.88,248.87,10.0]
[1732542296206,20.0,248.87,248.84,10.0]
[1732542296406,20.0,248.87,248.86,10.0]
[1732542296796,20.0,248.87,248.78,15.152]
[1732542296797,43.776884,248.87,248.84,10.0]
[1732542296998,23.776884,248.86,248.84,10.0]
[1732542297209,20.0,248.87,248.86,10.0]
[1732542297418,22.4108,248.87,248.86,10.0]
[1732542300997,23.776884,248.86,248.82,10.0]
[1732542301201,20.0,248.83,248.82,10.0]
[1732542301599,22.4112,248.83,248.82,10.0]
[1732542303288,22.4112,248.83,248.8,10.0]
[1732542303494,2.4114,248.81,248.8,10.0]
[1732542303724,2.4114,248.81,248.76,10.0]
[1732542303725,20.0,248.77,248.76,10.0]
[1732542304930,20.0,248.77,248.71,10.0]
[1732542304931,23.776884,248.76,248.71,10.0]
[1732542305115,20.0,248.77,248.71,10.0]
[1732542305314,43.776884,248.74,248.73,10.0]
[1732542305836,22.4121,248.74,248.73,10.0]
[1732542307407,2.4121,248.74,248.73,10.0]
[1732542307610,6.0281,248.84,248.79,10.0]
[1732542308032,6.0281,248.84,248.82,10.0]
[1732542308531,6.0281,248.84,248.77,10.0]
[1732542308703,6.0281,248.84,248.75,10.0]
[1732542308903,6.0281,248.84,248.78,10.0]
[1732542309515,20.0,248.77,248.75,10.0]
[1732542309720,8.4392,248.84,248.81,10.0]
[1732542310039,8.4392,248.84,248.83,10.0]
[1732542310405,2.4111,248.84,248.83,10.0]
[1732542311536,8.4364,248.92,248.87,10.0]
[1732542311943,9.98307943,248.92,248.85,10.0]
[1732542312232,20.0,248.89,248.86,10.0]
[1732542312415,20.0,248.85,248.84,10.0]
[1732542312911,20.0,248.85,248.82,10.0]
[1732542313111,20.0,248.81,248.8,6.40769528]
[1732542313614,22.4114,248.81,248.8,6.40769528]
[1732542314831,22.4114,248.81,248.73,22.5217]
[1732542314832,20.0,248.77,248.76,6.40769528]
[1732542315031,8.44,248.81,248.76,6.40769528]
[1732542315209,8.44,248.81,248.8,6.40769528]
[1732542315411,6.0286,248.81,248.78,6.40769528]
[1732542315626,20.0,248.79,248.76,6.40769528]
[1732542315825,20.0,248.78,248.76,6.40769528]
[1732542316124,23.776884,248.77,248.76,6.40769528]
[1732542316328,20.0,248.75,248.74,6.40769528]
[1732542317036,43.776884,248.75,248.74,6.40769528]
[1732542317336,20.0,248.71,248.7,6.40769528]
[1732542317511,22.4124,248.71,248.68,6.40769528]
[1732542318231,23.776884,248.7,248.68,6.40769528]
[1732542319038,23.776884,248.66,248.62,6.40769528]
[1732542319243,20.0,248.63,248.62,6.40769528]
[1732542319434,43.776884,248.63,248.62,6.40769528]
[1732542319735,23.776884,248.62,248.6,6.40769528]
[1732542319932,20.0,248.59,248.58,6.40769528]
[1732542321236,22.4136,248.59,248.58,6.40769528]
[1732542321615,22.4136,248.59,248.56,6.40769528]
[1732542322346,46.190484,248.59,248.58,6.40769528]
[1732542323512,46.190484,248.59,248.56,6.40769528]
[1732542324129,23.776884,248.58,248.54,6.40769528]
[1732542324346,20.0,248.55,248.54,6.40769528]
[1732542325443,22.414,248.55,248.54,6.40769528]
[1732542325642,46.190884,248.55,248.54,6.40769528]
[1732542325938,46.190884,248.55,248.51,6.40769528]
[1732542326141,43.776884,248.52,248.51,6.40769528]
[1732542327125,46.191084,248.52,248.51,6.40769528]
[1732542330546,20.0,248.48,248.47,6.40769528]
[1732542331421,20.0,248.49,248.47,6.40769528]
[1732542331622,32.226784,248.52,248.47,6.40769528]
[1732542331823,20.0,248.49,248.47,6.40769528]
[1732542332643,2.4146,248.48,248.47,6.40769528]
[1732542334358,23.776884,248.47,248.46,29.93239167]
[1732542336217,20.0,248.49,248.46,29.93239167]
[1732542336452,2.4146,248.48,248.46,29.93239167]
[1732542336651,26.191584,248.47,248.46,29.93239167]
[1732542338451,2.4147,248.47,248.46,29.93239167]
[1732542339326,2.4143,248.51,248.5,6.40769528]
[1732542339752,6.0349,248.56,248.52,6.40769528]
[1732542340136,6.0349,248.56,248.5,6.40769528]
[1732542340528,20.0,248.53,248.48,6.40769528]
[1732542341045,23.776884,248.52,248.46,36.34008695]
[1732542341224,20.0,248.49,248.46,36.34008695]
[1732542341649,20.0,248.49,248.46,29.93239167]
[1732542341848,20.0,248.47,248.46,29.93239167]
[1732542342058,43.776884,248.47,248.46,29.93239167]
[1732542342861,43.776884,248.47,248.46,27.31599167]
[1732542343061,43.776884,248.47,248.46,21.72549167]
[1732542343562,43.776884,248.47,248.46,19.60549167]
[1732542343740,43.776884,248.47,248.46,13.99759167]
[1732542343926,43.776884,248.47,248.46,7.01909167]
[1732542344126,43.776884,248.47,248.46,3.75489167]
[1732542344323,43.776884,248.47,248.46,9.167e-05]
[1732542344529,20.0,248.39,248.37,6.40769528]
[1732542344830,23.776884,248.38,248.37,6.40769528]
[1732542345556,20.0,248.39,248.37,6.40769528]
[1732542347137,23.776884,248.38,248.37,6.40769528]
[1732542347335,20.0,248.38,248.37,6.40769528]
[1732542347730,22.4156,248.38,248.37,6.40769528]
[1732542347936,22.4156,248.38,248.33,6.40769528]
[1732542348245,43.776884,248.34,248.33,6.40769528]
[1732542349334,46.192884,248.34,248.33,6.40769528]
[1732542349964,46.192884,248.34,248.31,6.40769528]
[1732542350257,46.192884,248.34,248.29,6.40769528]
[1732542350258,20.0,248.3,248.29,6.40769528]
[1732542351249,2.416,248.34,248.33,6.40769528]
[1732542352856,2.0131,248.37,248.36,6.40769528]
[1732542353367,2.0128,248.41,248.4,6.40769528]
[1732542353535,5.0308,248.47,248.4,6.40769528]
[1732542353864,2.0123,248.46,248.45,6.40769528]
[1732542355062,23.776884,248.46,248.45,6.40769528]
[1732542356061,23.776884,248.46,248.43,6.40769528]
[1732542356234,20.0,248.44,248.43,6.40769528]
[1732542357048,2.0125,248.45,248.43,17.98091251]
[1732542357634,2.0125,248.45,248.43,6.40769528]
[1732542358460,2.0125,248.45,248.43,17.98091251]
[1732542358642,2.0121,248.49,248.48,6.40769528]
[1732542359041,135.4,248.6,248.55,6.40769528]
[1732542359042,1.59690382,248.58,248.55,6.40769528]
[1732542359269,7.0396,248.59,248.57,6.40769528]
[1732542359436,2.0113,248.59,248.57,6.40769528]
[1732542359637,2.0113,248.59,248.55,6.40769528]
[1732542359836,2.0113,248.59,248.53,6.40769528]
[1732542360059,7.0396,248.59,248.53,6.40769528]
[1732542360833,23.776884,248.58,248.55,6.40769528]
[1732542361055,23.776884,248.58,248.53,6.40769528]
[1732542361260,23.776884,248.56,248.51,6.40769528]
[1732542361646,20.0,248.53,248.51,6.40769528]
[1732542363255,2.0119,248.52,248.51,6.40769528]
[1732542366070,22.0118,248.54,248.53,6.40769528]
[1732542366261,22.0118,248.54,248.53,17.98091251]
[1732542366558,22.0118,248.54,248.53,6.40769528]
[1732542367563,2.0118,248.54,248.53,6.40769528]
[1732542367870,1.59318185,248.61,248.59,6.40769528]
[1732542367871,2.0112,248.6,248.59,6.40769528]
[1732542368546,2.0112,248.6,248.59,17.98091251]
[1732542368750,2.0112,248.6,248.59,6.40769528]
[1732542369243,5.0271,248.65,248.59,6.40769528]
[1732542369739,20.0,248.62,248.59,6.40769528]
[1732542370160,2.0106,248.67,248.66,6.40769528]
[1732542370960,2.0106,248.67,248.61,11.57321723]
[1732542370961,2.0106,248.67,248.63,6.40769528]
[1732542371463,5.0264,248.69,248.61,6.40769528]
[1732542371666,20.0,248.66,248.63,6.40769528]
[1732542372059,20.0,248.66,248.65,6.40769528]
[1732542373469,22.0107,248.66,248.65,6.40769528]
[1732542375878,135.4,248.78,248.65,17.98091251]
[1732542376080,5.0255,248.73,248.72,6.40769528]
[1732542376375,5.0255,248.73,248.7,6.40769528]
[1732542376579,5.0255,248.73,248.66,6.40769528]
[1732542377069,23.776884,248.72,248.66,6.40769528]
[1732542377571,23.776884,248.68,248.66,6.40769528]
[1732542377944,20.0,248.69,248.68,6.40769528]
[1732542378149,20.0,248.68,248.66,6.40769528]
[1732542379455,2.0106,248.67,248.66,6.40769528]
[1732542383877,20.0996,248.76,248.6,6.3604]
[1732542383878,27.1344,248.76,248.71,6.40769528]
[1732542384372,27.1344,248.76,248.69,6.40769528]
[1732542384981,20.0,248.73,248.69,6.40769528]
[1732542385167,43.776884,248.72,248.69,6.40769528]
[1732542385366,20.0,248.72,248.69,6.40769528]
[1732542385563,25.787184,248.71,248.69,6.40769528]
[1732542390006,20.0,248.68,248.67,6.40769528]
[1732542391677,22.0106,248.68,248.67,6.40769528]
[1732542395393,22.0106,248.68,248.6,6.3604]
[1732542395394,2.01,248.75,248.74,6.40769528]
[1732542395581,7.0352,248.75,248.74,6.40769528]
[1732542396660,1.55471348,248.8,248.74,6.40769528]
[1732542396856,7.034,248.79,248.74,6.40769528]
[1732542397161,23.776884,248.78,248.74,6.40769528]
[1732542397515,7.034,248.79,248.78,6.40769528]
[1732542397865,7.034,248.79,248.75,6.40769528]
[1732542398389,20.0,248.76,248.75,6.40769528]
[1732542399070,22.0099,248.76,248.75,6.40769528]
[1732542399591,2.0099,248.76,248.75,6.40769528]
[1732542400095,1.55661741,248.84,248.8,6.40769528]
[1732542400096,7.0329,248.83,248.8,6.40769528]
[1732542401184,20.0,248.81,248.8,6.40769528]
[1732542401364,43.776884,248.81,248.8,6.40769528]
[1732542402166,45.786384,248.81,248.8,6.40769528]
[1732542403583,45.786384,248.81,248.76,6.40769528]
[1732542403789,23.776884,248.76,248.72,6.40769528]
[1732542404466,20.0,248.73,248.72,6.40769528]
[1732542404668,43.776884,248.73,248.72,6.40769528]
[1732542404877,20.0,248.73,248.72,6.40769528]
[1732542405889,22.0102,248.73,248.72,6.40769528]
[1732542409294,2.0102,248.73,248.72,6.40769528]
[1732542410278,22.0102,248.73,248.72,6.40769528]
[1732542410481,23.776884,248.72,248.7,6.40769528]
[1732542410794,20.0,248.69,248.68,6.40769528]
[1732542411000,45.787384,248.69,248.68,6.40769528]
[1732542412368,22.0105,248.69,248.68,6.40769528]
[1732542413272,2.0105,248.69,248.68,6.40769528]
[1732542413611,5.0255,248.73,248.68,6.40769528]
[1732542413784,5.0248,248.77,248.75,6.40769528]
[1732542415288,1.61766528,248.83,248.75,6.40769528]
[1732542415487,7.0331,248.82,248.75,6.40769528]
[1732542415685,7.0331,248.82,248.79,6.40769528]
[1732542415887,23.776884,248.81,248.79,6.40769528]
[1732542416069,20.0,248.78,248.77,6.40769528]
[1732542416270,43.776884,248.78,248.77,6.40769528]
[1732542417181,45.786684,248.78,248.77,6.40769528]
[1732542417386,22.0098,248.78,248.77,6.40769528]
[1732542418196,5.3432,248.78,248.77,21.92349528]
[1732542418402,3.59230472,248.92,248.77,21.92349528]
[1732542418403,135.4,248.94,248.89,6.40769528]
[1732542418607,10.0406,248.99,248.89,6.40769528]
[1732542418608,17.0701,248.97,248.89,6.40769528]
[1732542419605,23.776884,248.96,248.89,6.40769528]
[1732542420386,20.0,248.9,248.89,6.40769528]
[1732542420574,43.776884,248.9,248.89,6.40769528]
[1732542420773,43.776884,248.9,248.87,6.40769528]
[1732542420774,23.776884,248.89,248.87,6.40769528]
[1732542420973,23.776884,248.89,248.85,6.40769528]
[1732542421198,22.0091,248.86,248.85,6.40769528]
[1732542421577,45.785984,248.86,248.85,6.40769528]
[1732542421781,22.0091,248.86,248.85,6.40769528]
[1732542422306,5.0213,248.94,248.93,6.40769528]
[1732542425724,2.0084,248.95,248.93,6.40769528]
[1732542426619,5.0196,249.03,249.02,6.40769528]
[1732542426825,5.0196,249.03,249.0,6.40769528]
[1732542427132,5.0196,249.03,248.98,6.40769528]
[1732542427721,5.0196,249.03,249.0,6.40769528]
[1732542427902,20.0,249.01,248.98,6.40769528]
[1732542428102,20.0,249.0,248.94,6.40769528]
[1732542428325,20.0,248.99,248.96,6.40769528]
[1732542428627,43.776884,248.95,248.92,6.40769528]
[1732542428817,23.776884,248.94,248.92,6.40769528]
[1732542429029,43.776884,248.91,248.9,6.40769528]
[1732542429335,43.776884,248.87,248.86,6.40769528]
[1732542429830,45.785884,248.87,248.86,6.40769528]
[1732542430003,25.785884,248.87,248.86,6.40769528]
[1732542436503,25.785884,248.87,248.86,18.03073919]
[1732542436825,25.785884,248.87,248.86,6.40769528]
[1732542438023,2.0082,248.97,248.96,6.40769528]
[1732542439926,10.0385,249.04,248.96,6.40769528]
[1732542440304,20.0,249.01,248.96,6.40769528]
[1732542440510,23.776884,249.0,248.96,6.40769528]
[1732542440724,135.4,249.05,248.91,21.8042]
[1732542440725,7.0263,249.06,249.05,6.40769528]
[1732542442004,23.776884,249.06,249.05,6.40769528]
[1732542443105,23.776884,249.05,249.03,6.40769528]
[1732542443932,7.0252,249.1,248.91,31.8042]
[1732542443933,45.784684,249.02,249.01,6.40769528]
[1732542445507,23.776884,249.01,248.97,6.40769528]
[1732542445728,43.776884,248.98,248.97,6.40769528]
[1732542446039,45.784984,248.98,248.97,6.40769528]
[1732542446238,22.0081,248.98,248.97,6.40769528]
[1732542446814,2.0081,248.98,248.95,6.40769528]
[1732542447029,2.0081,248.98,248.92,6.40769528]
[1732542447330,20.0,248.95,248.92,6.40769528]
[1732542447540,23.776884,248.94,248.92,6.40769528]
[1732542448240,20.0,248.91,248.9,6.40769528]
[1732542448412,23.776884,248.9,248.88,6.40769528]
[1732542448834,43.776884,248.87,248.86,6.40769528]
[1732542449511,23.776884,248.87,248.86,6.40769528]
[1732542450444,25.785884,248.87,248.86,6.40769528]
[1732542453211,43.776884,248.84,248.81,6.40769528]
[1732542453422,23.776884,248.83,248.81,6.40769528]
[1732542454041,43.776884,248.8,248.79,6.40769528]
[1732542455332,45.786484,248.8,248.79,6.40769528]
[1732542459345,2.0096,248.8,248.79,6.40769528]
[1732542460749,10.0454,248.87,248.79,6.40769528]
[1732542460920,10.0454,248.87,248.83,6.40769528]
[1732542461550,43.776884,248.84,248.83,6.40769528]
[1732542461727,23.776884,248.83,248.81,6.40769528]
[1732542462834,25.786284,248.82,248.81,6.40769528]
[1732542467644,2.0094,248.82,248.81,6.40769528]
[1732542467855,135.4,249.04,248.97,6.40769528]
[1732542468032,135.4,249.04,248.95,6.40769528]
[1732542468033,135.4,249.03,248.95,6.40769528]
[1732542468651,10.0,249.02,248.93,6.40769528]
[1732542469154,152.466,249.03,248.93,6.40769528]
[1732542469343,10.0,249.01,248.93,6.40769528]
[1732542469734,23.776884,249.0,248.91,6.40769528]
[1732542469932,23.776884,248.98,248.91,6.40769528]
[1732542470139,20.0,248.95,248.91,6.40769528]
[1732542470338,43.776884,248.92,248.91,6.40769528]
[1732542471853,2.0085,248.94,248.91,6.40769528]
[1732542472038,2.0085,248.94,248.91,24.98840362]
[1732542472242,135.4,249.04,248.91,24.98840362]
[1732542472455,152.466,249.03,248.91,24.98840362]
[1732542472960,17.066,249.03,248.98,6.40769528]
[1732542473253,43.776884,248.99,248.98,6.40769528]
[1732542474032,45.784984,248.99,248.98,6.40769528]
[1732542476439,22.0081,248.99,248.98,6.40769528]
[1732542476653,2.0081,248.99,248.98,6.40769528]
[1732542477664,23.776884,249.02,248.98,6.40769528]
[1732542477872,20.0,248.99,248.98,6.40769528]
[1732542478041,23.776884,248.98,248.96,6.40769528]
[1732542479661,43.776884,248.96,248.93,6.40769528]
[1732542479861,20.0,248.95,248.93,6.40769528]
[1732542480163,43.776884,248.94,248.93,6.40769528]
[1732542480461,43.776884,248.94,248.91,6.40769528]
[1732542481336,43.776884,248.94,248.93,6.40769528]
[1732542481766,45.785384,248.94,248.93,6.40769528]
[1732542482150,2.0085,248.94,248.93,6.40769528]
[1732542483071,7.0279,249.01,249.0,6.40769528]
[1732542483659,5.02,249.01,249.0,6.40769528]
[1732542483858,2.0077,249.03,249.02,6.40769528]
[1732542484246,22.0077,249.03,249.02,6.40769528]
[1732542484669,2.0077,249.03,249.02,6.40769528]
[1732542485763,10.037,249.08,249.02,6.40769528]
[1732542485954,43.776884,249.05,249.04,6.40769528]
[1732542486545,23.776884,249.04,249.0,6.40769528]
[1732542486749,23.776884,249.04,249.02,6.40769528]
[1732542487948,25.784584,249.03,249.02,6.40769528]
[1732542490757,23.776884,248.99,248.97,6.40769528]
[1732542491972,2.0081,248.98,248.97,6.40769528]
[1732542492366,25.784984,248.98,248.97,6.40769528]
[1732542492546,23.776884,248.93,248.86,22.649]
[1732542493864,23.776884,248.89,248.86,22.649]
[1732542494060,23.776884,248.87,248.86,22.649]
[1732542494258,2.009,248.88,248.86,22.649]
[1732542494576,25.785584,248.91,248.87,18.58070834]
[1732542494763,2.0084,248.95,248.9,18.58070834]
[1732542494953,2.0084,248.95,248.92,18.58070834]
[1732542495152,2.0084,248.95,248.93,18.58070834]
[1732542495755,2.0084,248.95,248.91,18.58070834]
[1732542495953,12.0418,249.13,248.95,10.0]
[1732542496287,147.4418,249.13,249.0,18.58070834]
[1732542496574,12.0418,249.13,248.99,18.58070834]
[1732542496753,13.62361102,249.13,248.99,18.58070834]
[1732542497077,23.776884,249.12,248.95,10.0]
[1732542497378,23.776884,249.08,248.97,18.58070834]
[1732542497586,20.0,249.05,248.97,18.58070834]
[1732542497750,23.776884,249.04,248.97,18.58070834]
[1732542497947,2.0077,249.03,248.97,18.58070834]
[1732542498178,23.776884,249.02,248.95,18.58070834]
[1732542498471,23.776884,249.02,248.94,18.58070834]
[1732542499054,23.776884,249.02,248.95,18.58070834]
[1732542499282,23.776884,249.02,248.97,18.58070834]
[1732542499969,2.0077,249.03,248.99,18.58070834]
[1732542500171,2.007,249.12,249.0,18.58070834]
[1732542500374,7.0246,249.12,249.01,18.58070834]
[1732542500671,17.0599,249.12,248.98,18.58070834]
[1732542501456,17.0599,249.12,248.97,18.58070834]
[1732542501850,17.0599,249.12,248.92,31.7269]
[1732542501851,23.776884,249.07,248.98,18.58070834]
[1732542502051,2.0075,249.06,248.99,18.58070834]
[1732542502274,23.776884,249.05,248.99,18.58070834]
[1732542503149,23.776884,249.05,249.04,18.58070834]
[1732542503354,2.0075,249.06,249.04,18.58070834]
[1732542503555,2.0075,249.06,249.05,18.58070834]
[1732542503781,25.784384,249.06,249.04,18.58070834]
[1732542504974,5.0181,249.1,249.05,18.58070834]
[1732542505179,5.0181,249.1,248.99,10.0]
[1732542505180,2.0073,249.09,249.06,18.58070834]
[1732542506157,17.0565,249.17,249.03,18.58070834]
[1732542506467,23.776884,249.08,249.01,23.1977]
[1732542506653,23.776884,249.08,249.01,41.77840834]
[1732542506856,23.776884,249.08,249.02,18.58070834]
[1732542507183,23.776884,249.08,249.03,18.58070834]
[1732542507570,23.776884,249.08,249.02,18.58070834]
[1732542507873,23.776884,249.06,249.02,18.58070834]
[1732542508056,23.776884,249.06,249.01,23.1977]
[1732542508259,23.776884,249.06,248.98,18.58070834]
[1732542508464,23.776884,249.06,248.99,18.58070834]
[1732542508962,7.026,249.07,249.02,18.58070834]
[1732542508963,2.0074,249.07,249.02,18.58070834]
[1732542509277,23.776884,249.06,249.0,18.58070834]
[1732542509683,2.0074,249.07,249.03,18.58070834]
[1732542509983,17.0565,249.17,249.03,18.58070834]
[1732542510357,20.0,249.14,249.03,18.58070834]
[1732542510769,23.776884,249.13,249.03,18.58070834]
[1732542511074,20.0,249.14,249.03,18.58070834]
[1732542511075,23.776884,249.09,249.03,18.58070834]
[1732542511289,23.776884,249.09,249.02,18.58070834]
[1732542511469,23.776884,249.09,248.99,18.58070834]
[1732542511868,20.0,249.06,248.97,18.58070834]
[1732542512065,23.776884,249.05,248.96,28.58070834]
[1732542512261,23.776884,249.05,248.98,18.58070834]
[1732542512974,23.776884,249.05,248.95,32.7675]
[1732542512975,23.776884,249.03,248.96,18.58070834]
[1732542514082,23.776884,249.03,248.97,18.58070834]
[1732542514866,23.776884,249.01,248.97,18.58070834]
[1732542515270,23.776884,249.01,248.98,18.58070834]
[1732542515963,23.776884,249.01,248.97,18.58070834]
[1732542516375,23.776884,249.01,248.97,11.59611052]
[1732542516968,30.803984,249.03,248.97,11.59611052]
[1732542517377,30.803984,249.03,248.98,11.59611052]
[1732542521067,20.0,249.0,248.95,0.60234218]
[1732542521265,23.776884,248.99,248.93,11.59611052]
[1732542521466,23.776884,248.99,248.89,10.0]
[1732542521467,23.776884,248.99,248.95,11.59611052]
[1732542523167,23.776884,248.99,248.94,11.59611052]
[1732542523368,2.0081,248.98,248.9,10.0]
[1732542523568,2.0081,248.98,248.94,11.59611052]
[1732542523968,2.0081,248.98,248.95,11.59611052]
[1732542524988,2.0081,248.98,248.9,10.0]
[1732542524989,2.0081,248.98,248.94,11.59611052]
[1732542525987,2.0081,248.98,248.91,11.59611052]
[1732542526289,23.776884,248.97,248.89,11.59611052]
[1732542526466,23.776884,248.97,248.9,11.59611052]
[1732542526673,23.776884,248.97,248.91,11.59611052]
[1732542528586,23.776884,248.95,248.87,11.59611052]
[1732542528775,23.776884,248.95,248.84,11.59611052]
[1732542529400,23.776884,248.95,248.85,11.59611052]
[1732542529769,7.0297,248.94,248.85,11.59611052]
[1732542529977,23.776884,248.93,248.85,11.59611052]
[1732542530182,23.776884,248.93,248.82,10.0]
[1732542530183,20.0,248.9,248.82,11.59611052]
[1732542530366,23.776884,248.89,248.83,11.59611052]
[1732542530790,23.776884,248.89,248.81,11.59611052]
[1732542530989,23.776884,248.89,248.83,11.59611052]
[1732542531293,23.776884,248.89,248.84,11.59611052]
[1732542531498,23.776884,248.89,248.83,11.59611052]
[1732542531984,2.009,248.88,248.83,11.59611052]
[1732542532610,2.009,248.88,248.84,11.59611052]
[1732542533272,2.009,248.88,248.87,11.59611052]
[1732542533474,2.009,248.88,248.86,11.59611052]
[1732542533998,23.776884,248.93,248.86,11.59611052]
[1732542534372,23.776884,248.93,248.88,11.59611052]
[1732542534573,23.776884,248.93,248.9,11.59611052]
[1732542534791,5.0213,248.94,248.9,11.59611052]
[1732542535792,5.0213,248.94,248.86,11.59611052]
[1732542535995,23.776884,248.93,248.85,11.59611052]
[1732542536309,23.776884,248.93,248.83,11.59611052]
[1732542536673,23.776884,248.93,248.86,11.59611052]
[1732542537175,23.776884,248.93,248.89,11.59611052]
[1732542537496,23.776884,248.93,248.83,0.60265397]
[1732542537497,2.0084,248.95,248.9,11.59611052]
[1732542538571,2.0084,248.95,248.85,0.60251334]
[1732542538572,2.0084,248.95,248.91,11.59611052]
[1732542538772,2.0084,248.95,248.92,11.59611052]
[1732542539186,2.0084,248.95,248.91,11.59611052]
[1732542540196,5.0205,248.98,248.9,11.59611052]
[1732542540398,5.0205,248.98,248.88,11.59611052]
[1732542540399,23.776884,248.97,248.88,11.59611052]
[1732542540580,23.776884,248.97,248.86,10.0]
[1732542540779,5.0205,248.98,248.92,11.59611052]
[1732542540993,5.0205,248.98,248.94,11.59611052]
[1732542541481,2.0079,249.01,248.93,11.59611052]
[1732542541688,2.0079,249.01,248.94,11.59611052]
[1732542541884,2.0079,249.01,248.93,11.59611052]
[1732542542906,23.776884,249.0,248.89,11.59611052]
[1732542543079,23.776884,248.96,248.86,11.59611052]
[1732542543478,23.776884,248.96,248.89,11.59611052]
[1732542543680,23.776884,248.96,248.86,11.59611052]
[1732542543876,23.776884,248.96,248.85,11.59611052]
[1732542544180,20.0,248.93,248.84,11.59611052]
[1732542544399,23.776884,248.92,248.84,11.59611052]
[1732542544585,2.0087,248.91,248.83,11.59611052]
[1732542545113,2.0087,248.91,248.86,11.59611052]
[1732542545477,145.4397,249.01,248.88,11.59611052]
[1732542545784,5.0208,248.97,248.88,11.59611052]
[1732542546101,23.776884,248.96,248.88,11.59611052]
[1732542546297,23.776884,248.96,248.87,11.59611052]
[1732542546507,2.0084,248.95,248.87,11.59611052]
[1732542547182,2.0084,248.95,248.88,11.59611052]
[1732542547389,2.0084,248.95,248.89,11.59611052]
[1732542547797,2.0084,248.95,248.88,11.59611052]
[1732542548204,11.61499546,249.01,248.92,11.59611052]
[1732542548205,5.02,249.01,248.92,11.59611052]
[1732542548506,135.4,249.11,248.92,11.59611052]
[1732542548507,7.028,249.0,248.92,11.59611052]
[1732542548698,7.028,249.0,248.91,11.59611052]
[1732542549281,7.028,249.0,248.9,11.59611052]
[1732542549477,23.776884,248.99,248.88,11.59611052]
[1732542549687,23.776884,248.95,248.88,11.59611052]
[1732542549985,23.776884,248.95,248.87,11.59611052]
[1732542550190,2.0085,248.94,248.86,11.59611052]
[1732542550387,7.0297,248.94,248.86,11.59611052]
[1732542550611,23.776884,248.93,248.84,11.59611052]
[1732542551092,23.776884,248.93,248.83,11.59611052]
[1732542551906,23.776884,248.93,248.84,11.59611052]
[1732542552107,2.0086,248.92,248.84,11.59611052]
[1732542552496,23.776884,248.91,248.82,11.59611052]
[1732542552806,23.776884,248.91,248.8,11.59611052]
[1732542553213,20.0,248.88,248.76,0.602642]